Workbook

Sheet Sheet1
D10: 1 | E10: 2 | F10: 3 | G10: 4 | H10: 5 | I10: 6 | J10: 7 | K10: 8 | L10: 9 | M10: 10 | N10: TOT | O10: WT
C11: OFFICIALS | D11: 1 | E11: 1 | F11: =50/10 -> 5 | G11: 5 | H11: 5 | I11: 5 | J11: 0 | K11: 0 | L11: 5 | M11: 5 | N11: =SUM(D11:M11) -> 32 | O11: =N11/32*75 -> 75
C12: Jake | D12: 1 | E12: 1 | F12: 5 | G12: 5 | H12: 5 | I12: 5 | J12: 0 | K12: 0 | L12: 5 | M12: 5 | N12: 32 | O12: 75
C13: Ragnarok | D13: 1 | E13: 1 | F13: 5 | G13: 5 | H13: 5 | I13: 5 | J13: 0 | K13: 0 | L13: 5 | M13: 5 | N13: 32 | O13: 75
C14: CelL | D14: 1 | E14: 1 | F14: 5 | G14: 5 | H14: 5 | I14: 5 | J14: 0 | K14: 0 | L14: 5 | M14: 5 | N14: 32 | O14: 75
C15: QuickZ | D15: 1 | E15: 1 | F15: 5 | G15: 5 | H15: 5 | I15: 5 | J15: 0 | K15: 0 | L15: 5 | M15: 5 | N15: 32 | O15: 75
C16: Sasik | D16: 1 | E16: 1 | F16: 5 | G16: 5 | H16: 5 | I16: 5 | J16: 0 | K16: 0 | L16: 5 | M16: 5 | N16: 32 | O16: 75
C17: Superjazz | D17: 1 | E17: 1 | F17: 5 | G17: 5 | H17: 5 | I17: 5 | J17: 0 | K17: 0 | L17: 5 | M17: 5 | N17: 32 | O17: 75
C18: FawFuL | E18: 1 | F18: 5 | G18: 5 | H18: 5 | I18: 5 | J18: 0 | K18: 0 | L18: 5 | M18: 5 | N18: 31 | O18: 72
C19: cooba | D19: 1 | E19: 1 | F19: 5 | G19: 5 | J19: 0 | K19: 0 | L19: 5 | M19: 5 | N19: 22 | O19: 52
C20: FireSworD | J20: 0 | K20: 0 | L20: 5 | M20: 5 | N20: 10 | O20: 23
C21: Lithium | D21: 1 | N21: 1 | O21: 2
C22: COMPETITORS | D22: 5 | E22: 3 | F22: 2.5 | G22: 4.9 | H22: 1 | I22: 4 | J22: 1 | K22: 2 | L22: 4.6 | M22: 1.7 | N22: =SUM(D22:M22) -> 29.7 | O22: 70
C23: Violet | D23: 5 | E23: 3 | F23: 2.5 | G23: 4.9 | H23: 1 | I23: 4 | J23: 1 | K23: 2 | L23: 4.6 | M23: 1.7 | N23: =SUM(D23:M23) -> 29.7 | O23: 70
C24: St.Louis | D24: 5 | E24: 3 | F24: 2.5 | G24: 4.9 | H24: 1 | I24: 4 | J24: 1 | K24: 2 | L24: 4.6 | M24: 1.7 | N24: =SUM(D24:M24) -> 29.7 | O24: 70
C25: Toni | D25: 5 | E25: 3 | F25: 2.5 | G25: 4.9 | H25: 1 | I25: 4 | J25: 1 | K25: 2 | L25: 4.6 | M25: 1.7 | N25: =SUM(D25:M25) -> 29.7 | O25: 70
C26: Nerd | D26: 5 | E26: 3 | F26: 2.5 | G26: 4.9 | H26: 1 | I26: 4 | J26: 1 | K26: 2 | L26: 4.6 | M26: 1.7 | N26: =SUM(D26:M26) -> 29.7 | O26: 70
C27: Galana | D27: 5 | E27: 3 | F27: 2.5 | G27: 4.9 | H27: 1 | I27: 4 | J27: 1 | K27: 2 | L27: 4.6 | M27: 1.7 | N27: =SUM(D27:M27) -> 29.7 | O27: 70
C28: TW | E28: 3 | F28: 2.5 | G28: 4.9 | H28: 1 | I28: 4 | J28: 1 | K28: 2 | L28: 4.6 | M28: 1.7 | N28: =SUM(D28:M28) -> 24.7 | O28: 58
C29: Purplejazz | F29: 2.5 | G29: 4.9 | H29: 1 | I29: 4 | J29: 1 | K29: 2 | L29: 4.6 | M29: 1.7 | N29: =SUM(D29:M29) -> 21.7 | O29: 51
C30: Urbs | E30: 3 | F30: 2.5 | G30: 4.9 | H30: 1 | I30: 4 | N30: =SUM(D30:M30) -> 15.4 | O30: 36
C31: Darksonic | H31: 1 | I31: 4 | J31: 1 | K31: 2 | L31: 4.6 | M31: 1.7 | N31: =SUM(D31:M31) -> 14.3 | O31: 34
C32: Haremhab | H32: 1 | I32: 4 | J32: 1 | K32: 2 | L32: 4.6 | M32: 1.7 | N32: =SUM(D32:M32) -> 14.3 | O32: 34
C33: Tweek | J33: 1 | K33: 2 | L33: 4.6 | M33: 1.7 | N33: =SUM(D33:M33) -> 9.3 | O33: 22
C34: suprem | F34: 2.5 | G34: 4.9 | H34: 1 | N34: =SUM(D34:M34) -> 8.4 | O34: 22
C35: Sperry | D35: 5 | E35: 3 | N35: =SUM(D35:M35) -> 8 | O35: 20
C36: Snake | J36: 1 | K36: 2 | L36: 4.6 | N36: =SUM(D36:M36) -> 7.6 | O36: 18
C37: Andrzej | F37: 2.5 | G37: 4.9 | N37: =SUM(D37:M37) -> 7.4 | O37: 17
C38: Skele | E38: 3 | F38: 2.5 | N38: =SUM(D38:M38) -> 5.5 | O38: 13
C39: USB | I39: 4 | N39: =SUM(D39:M39) -> 4 | O39: 9
C40: Kryt | E40: 3 | N40: =SUM(D40:M40) -> 3 | O40: 7

Sheet Sheet2

Sheet Sheet3
